bitfinex-derivatives/quotes_ETHF0:USTF0_20251007
["timestamp","ask_amount","ask_price","bid_price","bid_amount"]
[1759799357956,0.89967,4694.0,4693.9,0.80558]
[1759799358262,0.89967,4694.0,4693.9,0.9677]
[1759799358663,1.11477,4694.0,4693.9,0.9677]
[1759799358967,0.7315,4694.0,4693.9,0.9677]
[1759799360362,0.5433,4694.3,4694.2,0.7437]
[1759799360567,0.5433,4694.3,4694.2,0.9567]
[1759799361161,0.218,4694.5,4694.4,0.2121]
[1759799361364,0.5433,4694.7,4694.6,0.7437]
[1759799361564,0.5433,4694.7,4694.6,0.9567]
[1759799361765,0.5433,4694.7,4694.6,1.33992]
[1759799362369,0.7636,4694.7,4694.6,1.13852]
[1759799362764,0.7636,4694.7,4694.6,0.5423]
[1759799363063,0.7636,4694.7,4694.6,0.4251]
[1759799363268,0.7636,4694.7,4694.6,0.7553]
[1759799364262,0.7636,4694.7,4694.6,0.9567]
[1759799366167,3.2078,4695.1,4694.7,0.2121]
[1759799366362,0.5433,4694.8,4694.7,0.79671]
[1759799366559,0.7636,4694.8,4694.7,0.79671]
[1759799366965,0.7636,4694.8,4694.7,1.12691]
[1759799367467,0.7636,4694.8,4694.7,0.92551]
[1759799369471,0.7636,4694.8,4694.7,0.213]
[1759799370374,0.7636,4694.8,4694.7,0.7553]
[1759799371174,0.7636,4694.8,4694.7,0.9567]
[1759799371370,4.13428,4695.1,4695.0,0.7437]
[1759799371676,4.35458,4695.1,4695.0,0.7437]
[1759799373177,4.35458,4695.1,4695.0,0.8704]
[1759799375676,4.35458,4695.1,4695.0,0.7437]
[1759799376676,1.14678,4695.1,4695.0,0.7437]
[1759799380684,1.14678,4695.1,4695.0,1.12689]
[1759799380884,1.14678,4695.1,4695.0,1.24979]
[1759799381178,1.14678,4695.1,4695.0,1.12689]
[1759799381781,0.2171,4695.3,4695.2,0.38317]
[1759799381982,0.2171,4695.3,4695.2,1.32837]
[1759799382478,0.3081,4695.8,4695.2,0.6441]
[1759799382677,0.2171,4696.1,4696.0,1.23821]
[1759799382883,0.2171,4696.1,4696.0,4.65901]
[1759799383082,0.3081,4696.4,4696.2,1.11529]
[1759799385579,0.3081,4696.7,4696.2,1.11529]
[1759799385781,0.3081,4697.8,4697.0,0.554]
[1759799386079,0.418,4697.4,4697.3,0.2109]
[1759799386280,0.7261,4697.4,4697.3,0.512]
[1759799386480,0.7261,4697.4,4697.3,0.7322]
[1759799386681,0.72854737,4697.4,4697.3,0.73488907]
[1759799386881,0.72854737,4697.4,4697.3,0.94788907]
[1759799387182,0.00244737,4697.4,4697.3,0.94788907]
[1759799387379,0.00244737,4697.4,4697.3,3.94268907]
[1759799387880,0.00244737,4697.4,4697.3,4.15568907]
[1759799388277,0.022,4697.9,4697.8,1.12236]
[1759799388581,0.022,4697.9,4697.8,4.54316]
[1759799388775,0.022,4697.9,4697.8,9.54316]
[1759799388981,0.2027,4698.7,4698.6,1.1223]
[1759799389184,0.20538358,4698.7,4698.6,1.3353]
[1759799389687,0.20538358,4698.7,4698.6,0.9524]
[1759799390485,0.00268358,4698.7,4698.6,0.9524]
[1759799391089,0.73248358,4698.7,4698.6,0.9524]
[1759799392484,0.73248358,4698.7,4698.6,0.2186]
[1759799392683,0.7298,4698.2,4698.1,0.7394]
[1759799392988,0.2027,4698.2,4698.1,0.9524]
[1759799393188,0.2027,4698.2,4698.1,41.7524]
[1759799394483,0.5212,4698.2,4698.1,41.5394]
[1759799394690,0.2027,4698.2,4698.1,41.5394]
[1759799394887,0.38293,4698.3,4698.1,41.7524]
[1759799395087,0.38293,4698.3,4698.2,0.7394]
[1759799395389,0.2027,4698.3,4698.2,0.81732]
[1759799395591,0.2027,4698.3,4698.2,1.12232]
[1759799396885,0.38292,4698.4,4698.3,0.7394]
[1759799397086,0.58562,4698.4,4698.3,0.9524]
[1759799398687,0.90412,4698.4,4698.3,0.9524]
[1759799400084,0.38292,4698.4,4698.3,0.9524]
[1759799400392,0.2027,4698.6,4698.5,1.2523]
[1759799400692,0.5212,4698.6,4698.5,1.0824]
[1759799400895,0.00268358,4698.7,4698.6,0.7394]
[1759799401691,0.00268358,4698.7,4698.6,34.1654]
[1759799403490,0.00268358,4698.7,4698.6,39.1654]
[1759799407500,0.00268358,4698.7,4698.6,34.1654]
[1759799407793,0.00268358,4698.7,4698.6,74.9654]
[1759799410597,0.01817291,4699.7,4699.6,0.7394]
[1759799410898,0.01817291,4699.7,4699.6,4.1602]
[1759799411698,0.02034173,4699.7,4699.6,4.1602]
[1759799412706,0.02034173,4699.7,4699.5,0.2186]
[1759799412900,0.02034173,4699.7,4699.6,0.6474]
[1759799413206,0.02034173,4699.7,4699.6,3.8552]
[1759799413405,0.02034173,4699.7,4699.6,44.9602]
[1759799413807,0.90392,4700.8,4700.7,0.4344]
[1759799414002,1.5880317,4700.8,4700.7,0.9524]
[1759799414197,0.8868117,4700.8,4700.7,0.9524]
[1759799414405,0.6782117,4700.8,4700.7,0.9524]
[1759799414610,0.9967117,4700.8,4700.7,0.9524]
[1759799414901,0.68020897,4700.8,4700.7,0.74196101]
[1759799415206,0.99870897,4700.8,4700.7,0.74196101]
[1759799415407,6.59002897,4700.8,4700.7,0.00256101]
[1759799415809,6.59002897,4700.8,4700.7,0.21556101]
[1759799416009,6.59002897,4700.8,4700.7,0.00256101]
[1759799416404,6.59002897,4700.8,4700.7,0.21556101]
[1759799417602,6.59002897,4700.8,4700.7,0.00256101]
[1759799417802,6.59002897,4700.8,4700.7,0.21556101]
[1759799420705,6.59002897,4700.8,4700.7,0.00256101]
[1759799420910,1.59002897,4700.8,4700.7,0.21556101]
[1759799421105,1.59002897,4700.8,4700.7,0.00256101]
[1759799421310,6.59002897,4700.8,4700.7,0.00256101]
[1759799421610,6.59002897,4700.8,4700.7,0.21556101]
[1759799422209,6.59002897,4700.8,4700.7,0.00256101]
[1759799422410,6.59002897,4700.8,4700.7,0.21556101]
[1759799423409,1.59002897,4700.8,4700.7,0.00256101]
[1759799423711,1.59002897,4700.8,4700.7,0.21556101]
[1759799425507,1.59002897,4700.8,4700.7,0.00256101]
[1759799426712,6.59002897,4700.8,4700.7,0.00256101]
[1759799426908,6.59002897,4700.8,4700.7,0.22406101]
[1759799427108,1.59002897,4700.8,4700.7,0.76576101]
[1759799428108,1.59002897,4700.8,4700.7,0.00256101]
[1759799428314,1.59002897,4700.8,4700.7,0.21556101]
[1759799428910,1.59002897,4700.8,4700.7,0.43706101]
[1759799431320,1.59002897,4700.8,4700.7,0.76416101]
[1759799432714,1.21160897,4700.8,4700.7,0.97876101]
[1759799432913,1.21160897,4700.8,4700.7,0.43706101]
[1759799433215,1.21160897,4700.8,4700.7,0.21556101]
[1759799433416,1.21160897,4700.8,4700.7,0.43706101]
[1759799433808,1.21160897,4700.8,4700.7,0.76416101]
[1759799434618,1.21160897,4700.8,4700.7,0.21556101]
[1759799435922,1.21160897,4700.8,4700.7,0.00256101]
[1759799436318,1.21160897,4700.8,4700.7,0.21556101]
[1759799438424,1.21160897,4700.8,4700.7,7.173e-05]
[1759799438425,6.21160897,4700.8,4700.7,7.173e-05]
[1759799442431,1.21160897,4700.8,4700.7,7.173e-05]
[1759799451936,1.21160897,4700.8,4700.7,0.73747173]
[1759799453540,0.69920897,4700.8,4700.7,0.73747173]
[1759799453939,1.01900897,4700.8,4700.7,0.73747173]
[1759799454842,1.23690897,4700.8,4700.7,0.73747173]
[1759799455137,1.01900897,4700.8,4700.7,0.73747173]
[1759799455337,0.76139727,4700.8,4700.7,0.73747173]
[1759799455637,1.23785878,4700.8,4700.7,0.95047173]
[1759799457540,1.23785878,4700.8,4700.7,7.173e-05]
[1759799457541,0.91805878,4700.8,4700.7,7.173e-05]
[1759799457741,0.2179,4699.8,4699.7,0.212]
[1759799457941,0.4396,4699.8,4699.7,0.9504]
[1759799458144,0.7594,4699.8,4699.7,0.9504]
[1759799458745,0.7594,4699.8,4699.7,0.95232741]
[1759799459040,0.7594,4699.8,4699.7,0.73932741]
[1759799459240,0.7594,4699.8,4699.7,0.95232741]
[1759799463043,0.38279,4699.9,4699.7,0.73932741]
[1759799463239,0.38279,4699.9,4699.8,0.9504]
[1759799463439,1.14219,4699.9,4699.8,0.9504]
[1759799463646,1.14219,4699.9,4699.8,0.5312]
[1759799463840,0.92424,4700.5,4700.4,0.2062]
[1759799464138,0.1319,4701.5,4700.7,0.3192]
[1759799464139,3.2078,4701.2,4700.7,0.3192]
[1759799464343,3.59049,4701.2,4700.7,0.7374]
[1759799464548,3.2078,4701.2,4700.7,0.9504]
[1759799464848,0.3827,4701.1,4700.7,0.9504]
[1759799465544,3.2078,4701.2,4700.7,0.9504]
[1759799465846,0.3827,4701.1,4700.7,0.9504]
[1759799466047,0.38269,4701.2,4700.7,0.9504]
[1759799466250,0.38266,4701.5,4700.7,5.9504]
[1759799466547,0.38264,4701.7,4700.7,5.9504]
[1759799466848,0.3198,4701.9,4701.8,0.7374]
[1759799466849,1.14203,4701.9,4701.8,0.7374]
[1759799467048,1.14203,4701.9,4701.8,0.9504]
[1759799467246,0.7594,4701.9,4701.8,0.9504]
[1759799467652,0.76121189,4701.9,4701.8,0.9504]
[1759799467955,0.7594,4701.7,4701.6,40.8]
[1759799468150,0.7594,4701.7,4701.6,41.3322]
[1759799468841,0.7594,4701.7,4701.6,0.9504]
[1759799469044,0.7594,4701.7,4701.6,0.7374]
[1759799469251,0.7594,4701.7,4701.6,0.7442]
[1759799469449,0.7594,4701.7,4701.6,0.9504]
[1759799470447,0.7594,4701.7,4701.6,0.7374]
[1759799470654,0.4436,4701.5,4701.4,40.8]
[1759799470855,0.4436,4701.5,4701.2,0.5312]
[1759799470856,0.7594,4701.3,4701.2,0.5312]
[1759799471051,0.7594,4701.3,4701.2,0.212]
[1759799471246,0.92423,4700.6,4700.5,0.5402]
[1759799471447,1.14213,4700.6,4700.5,0.5402]
[1759799471648,1.14213,4700.6,4700.5,0.7532]
[1759799471849,1.14213,4700.6,4700.5,0.8594]
[1759799472049,1.14213,4700.6,4700.5,1.0724]
[1759799472257,1.14213,4700.6,4700.5,0.9504]
[1759799473349,1.14213,4700.6,4700.5,0.7374]
[1759799473758,1.14213,4700.6,4700.5,0.9504]
[1759799473955,1.14213,4700.6,4700.5,0.7374]
[1759799474255,1.14213,4700.6,4700.5,0.9504]
[1759799474450,0.3198,4701.2,4700.9,0.70191]
[1759799474760,0.3198,4701.2,4701.1,0.7374]
[1759799474761,0.2217,4701.2,4701.1,0.7374]
[1759799474958,0.2217,4701.2,4701.1,1.12009]
[1759799475259,0.60437,4701.4,4701.3,0.7374]
[1759799475461,3.59045,4701.6,4701.5,0.122]
[1759799475661,3.81215,4701.6,4701.5,0.8594]
[1759799475957,4.13195,4701.6,4701.5,0.8594]
[1759799476362,4.34985,4701.6,4701.5,0.7374]
[1759799477554,4.34985,4701.6,4701.5,0.9504]
[1759799478559,4.34985,4701.6,4701.5,0.7374]
[1759799478760,4.34985,4701.6,4701.5,0.9504]
[1759799479258,4.34985,4701.6,4701.5,0.7374]
[1759799479558,4.34985,4701.6,4701.5,0.9504]
[1759799479951,1.13269,4701.1,4701.0,0.8643]
[1759799480156,1.13269,4701.1,4701.0,0.9553]
[1759799480357,0.1254,4701.5,4701.3,0.4192]
[1759799480358,0.59447,4701.4,4701.3,0.4192]
[1759799480557,0.91767,4701.4,4701.3,0.7423]
[1759799481058,1.13267,4701.4,4701.3,0.7423]
[1759799481358,1.13267,4701.4,4701.3,0.9553]
[1759799481863,1.13272,4700.8,4700.7,0.7423]
[1759799482058,0.75,4700.8,4700.7,0.9553]
[1759799482257,0.2118,4701.0,4700.9,0.80191]
[1759799482457,0.2118,4701.0,4700.9,1.12501]
[1759799482861,1.13264,4701.7,4701.6,0.2177]
[1759799483159,1.60739828,4701.7,4701.6,0.4307]
[1759799483559,1.60739828,4701.7,4701.6,0.213]
[1759799484764,1.60739828,4701.7,4701.6,0.4307]
[1759799485062,1.60739828,4701.7,4701.6,0.213]
[1759799485863,0.535,4700.7,4700.6,0.7423]
[1759799486057,0.535,4700.7,4700.6,0.9553]
[1759799486058,0.75,4700.7,4700.6,0.9553]
[1759799487365,3.3332,4701.5,4701.3,0.7423]
[1759799487366,0.75,4701.4,4701.3,0.7423]
[1759799487566,1.22478241,4701.4,4701.3,0.9553]
[1759799488065,1.60745241,4701.4,4701.3,0.9553]
[1759799488360,0.68658241,4701.4,4701.3,0.9553]
[1759799489064,1.00978241,4701.4,4701.3,0.9553]
[1759799489266,1.22478241,4701.4,4701.3,0.9553]
[1759799492572,0.75,4701.4,4701.3,0.9553]
[1759799494873,0.75,4701.4,4701.3,0.7423]
[1759799495074,0.75,4701.4,4701.3,0.9553]
[1759799495367,0.75,4701.4,4701.0,0.1244]
[1759799495573,1.13272,4700.8,4700.7,0.4192]
[1759799495874,1.13272,4700.8,4700.7,0.6322]
[1759799496069,1.13272,4700.8,4700.7,0.9553]
[1759799496668,0.38273,4700.6,4700.5,3.2078]
[1759799496875,1.09893,4700.6,4700.5,3.9538]
[1759799497079,1.09893,4700.6,4700.5,4.1596]
[1759799498074,0.38276,4700.3,4700.0,3.71258]
[1759799498274,1.09898,4700.0,4699.9,0.533]
[1759799498576,1.23098,4700.0,4699.9,0.746]
[1759799499682,1.23098,4700.0,4699.9,0.2039]
[1759799499980,1.099,4699.8,4699.7,0.53492741]
[1759799500468,1.099,4699.8,4699.7,0.74792741]
[1759799500667,1.099,4699.8,4699.7,0.95372741]
[1759799503376,1.099,4699.8,4699.7,0.00192741]
[1759799503775,1.099,4699.8,4699.7,0.74792741]
[1759799504178,1.099,4699.8,4699.7,0.53492741]
[1759799504379,1.099,4699.8,4699.7,0.74792741]
[1759799504683,1.099,4699.8,4699.7,0.53492741]
[1759799504879,1.099,4699.8,4699.7,0.74792741]
[1759799505175,1.099,4699.8,4699.7,0.21492741]
[1759799505585,1.099,4699.8,4699.7,0.00192741]
[1759799505882,1.099,4699.8,4699.7,0.21492741]
[1759799506779,1.099,4699.8,4699.7,0.00192741]
[1759799506979,1.099,4699.8,4699.7,0.21492741]
[1759799507179,1.099,4699.8,4699.7,0.00192741]
[1759799512486,1.1191,4698.6,4698.5,0.5228]
[1759799512692,1.1191,4698.6,4698.5,0.7358]
[1759799512880,0.7362,4698.6,4698.5,0.9395]
[1759799513281,0.73834501,4698.6,4698.5,0.9421531]
[1759799513887,0.73834501,4698.6,4698.5,0.7291531]
[1759799514096,0.73834501,4698.6,4698.5,0.9421531]
[1759799514386,0.2138,4697.5,4697.4,0.3142]
[1759799514591,0.7362,4697.5,4697.4,0.7265]
[1759799515487,1.11919,4697.5,4697.4,0.72874969]
[1759799517195,1.11919,4697.5,4697.4,0.94174969]
[1759799520798,1.24929,4697.5,4697.4,0.21084969]
[1759799521087,1.24929,4697.5,4697.4,0.21524969]
[1759799521282,1.24929,4697.5,4697.4,0.00224969]
[1759799521492,0.80326,4696.6,4696.5,0.7265]
[1759799521688,1.11926,4696.6,4696.5,0.9395]
[1759799521885,0.1301,4696.5,4696.1,0.3142]
[1759799522086,1.11929,4696.2,4696.1,0.7265]
[1759799522287,1.11929,4696.2,4696.1,0.9395]
[1759799522491,1.11929,4696.2,4696.1,0.94207071]
[1759799523791,1.11929,4696.2,4696.1,0.00257071]
[1759799523992,1.11929,4696.2,4696.1,0.21557071]
[1759799524690,1.11929,4696.2,4696.1,0.00257071]
[1759799527697,1.11929,4696.2,4696.1,0.52537071]
[1759799528604,1.11929,4696.2,4696.1,0.21117071]
[1759799529603,0.7362,4696.2,4696.1,0.21117071]
[1759799529907,0.7362,4696.2,4696.1,0.72907071]
[1759799530107,3.2078,4696.5,4696.2,0.3142]
[1759799530301,3.2078,4696.5,4696.4,0.4123]
[1759799530606,3.2078,4696.5,4696.4,0.7265]
[1759799531207,3.7376,4696.5,4696.4,0.7265]
[1759799531509,4.0741,4696.5,4696.4,0.5228]
[1759799532211,4.0741,4696.5,4696.4,0.4216]
[1759799532603,0.4202,4696.2,4696.1,0.52537071]
[1759799532905,1.11929,4696.2,4696.1,0.00257071]
[1759799535510,0.7362,4696.2,4696.1,0.52537071]
[1759799535710,0.7362,4696.2,4696.1,0.72907071]
[1759799543218,1.21146841,4696.2,4696.1,0.72907071]
[1759799543918,1.59455841,4696.2,4696.1,0.72907071]
[1759799551023,0.3293,4695.2,4694.1,3.2078]
[1759799551319,1.25073,4694.5,4694.4,0.4142]
[1759799551519,1.72764483,4694.5,4694.4,0.2055]
[1759799551719,1.72764483,4694.5,4694.3,0.213]
[1759799551920,1.22101483,4694.4,4694.3,0.213]
[1759799552119,1.22255053,4694.4,4694.3,0.0019294]
[1759799552320,1.22255053,4694.4,4694.3,0.2149294]
[1759799552321,1.2226843,4694.4,4694.3,0.2149294]
[1759799552824,1.2226843,4694.4,4694.3,0.0019294]
[1759799559126,0.7456357,4694.4,4694.3,0.0019294]
[1759799562024,0.7456357,4694.4,4694.3,0.2074294]
[1759799562534,0.3308357,4694.4,4694.3,5.7482294]
[1759799562731,0.0015357,4694.4,4694.3,0.7482294]
[1759799563031,0.0015357,4694.4,4694.3,5.7482294]
[1759799563628,0.0015357,4694.4,4694.3,46.5482294]
[1759799566938,0.3209357,4694.4,4694.3,46.5482294]
[1759799569638,0.0015357,4694.4,4694.3,46.5482294]
[1759799569933,0.3011,4695.0,4694.9,0.5916]
[1759799570135,3.3312,4695.5,4695.4,0.7283]
[1759799570136,3.93435,4695.5,4695.4,0.7283]
[1759799570332,3.93435,4695.5,4695.4,0.9413]
[1759799570537,0.94485,4695.5,4695.4,0.9413]
[1759799570733,1.24595,4695.5,4695.4,0.9413]
[1759799571036,1.24751542,4695.5,4695.4,0.9413]
[1759799572036,1.24751542,4695.5,4695.4,0.6246]
[1759799573036,1.24751542,4695.5,4694.8,3.2078]
[1759799573037,0.7394,4694.9,4694.3,3.2097294]
[1759799573238,0.94564,4694.5,4694.4,0.4214]
[1759799573642,0.94564,4694.5,4694.3,3.2097294]
[1759799573845,0.7394,4694.4,4694.3,3.2097294]
[1759799574050,0.7394,4694.4,4694.3,3.4227294]
[1759799574543,0.7394,4694.4,4694.3,3.6311294]
[1759799575949,0.5211,4694.4,4694.3,4.1510294]
[1759799576146,1.24669,4695.0,4694.9,0.2084]
[1759799576445,1.24669,4695.0,4694.9,0.4214]
[1759799576645,0.8635,4695.0,4694.9,0.9413]
[1759799577243,0.8635,4695.0,4694.9,0.6246]
[1759799581244,0.12496542,4695.5,4695.3,0.38316]
[1759799581445,0.86436542,4695.5,4695.4,0.4214]
[1759799582046,0.56326542,4695.5,4694.9,3.2078]
[1759799582352,0.56326542,4695.5,4694.4,3.59104]
[1759799582353,0.1241,4694.5,4694.4,3.59104]
[1759799582547,0.8635,4694.5,4694.4,44.59944]
[1759799582745,0.8635,4694.5,4694.4,44.81244]
[1759799583441,0.8635,4694.5,4694.4,44.59944]
[1759799583644,0.8635,4694.5,4694.4,44.81244]
[1759799584144,0.8635,4694.5,4694.4,44.2162]
[1759799584440,0.8635,4694.5,4694.4,3.6292]
[1759799584642,0.8635,4694.5,4694.4,0.213]
[1759799584844,0.8635,4694.5,4694.3,0.0019294]
[1759799584845,1.12264,4694.4,4694.3,0.0019294]
[1759799585150,1.12264,4694.4,4694.3,0.2149294]
[1759799585550,1.12264,4694.4,4694.3,0.4233294]
[1759799586148,0.7394,4694.4,4694.3,0.6265294]
[1759799586348,0.7394,4694.4,4694.3,0.9432294]
[1759799586745,0.7394,4694.4,4694.3,0.6265294]
[1759799592348,0.7394,4694.4,4694.3,0.4233294]
[1759799593054,0.7394,4694.4,4694.3,0.0019294]
[1759799593250,0.7394,4694.4,4694.3,0.2149294]
[1759799594956,0.7394,4694.4,4694.3,0.4233294]
[1759799595156,0.7394,4694.4,4694.3,0.9432294]
[1759799595753,0.5211,4694.4,4694.3,0.9432294]
[1759799596557,0.7394,4694.4,4694.3,0.9432294]
[1759799599949,0.4448,4695.0,4694.3,0.6265294]
[1759799600154,1.23739,4695.0,4694.9,0.4247]
[1759799600349,1.23739,4695.0,4694.9,0.6377]
[1759799606665,1.23739,4695.0,4694.9,0.213]
[1759799611365,0.38322,4694.7,4694.5,3.2078]
[1759799611670,0.7301,4694.6,4694.5,3.2078]
[1759799611865,0.7301,4694.6,4694.5,3.4208]
[1759799612773,0.7301,4694.6,4694.5,0.213]
[1759799614171,0.7301,4694.4,4694.3,0.0019294]
[1759799614370,0.7301,4694.4,4694.3,0.2149294]
[1759799614770,0.7301,4694.4,4694.3,0.4334294]
[1759799617073,0.7301,4694.4,4694.3,0.9656294]
[1759799617276,0.3207,4694.4,4694.3,0.9656294]
[1759799617473,0.5398,4694.4,4694.3,0.9656294]
[1759799618374,0.7549,4694.4,4694.3,0.6434294]
[1759799618979,0.7549,4694.4,4694.3,0.4334294]
[1759799619278,0.7549,4694.4,4694.3,0.2149294]
[1759799620076,0.7549,4694.4,4694.3,0.4161294]
[1759799620480,0.7549,4694.4,4694.3,0.6261294]
[1759799620979,1.13814,4694.4,4694.3,0.6261294]
[1759799621982,0.7549,4694.4,4694.3,1.3315794]
[1759799622176,1.13814,4694.4,4694.3,1.3315794]
[1759799623380,1.13814,4694.4,4694.3,0.6261294]
[1759799624878,1.13814,4694.4,4694.3,1.0093794]
[1759799625277,0.7549,4694.4,4694.3,1.3315794]
[1759799626083,1.13814,4694.4,4694.3,1.3315794]
[1759799626379,1.13814,4694.4,4694.3,1.0093794]
[1759799626685,0.7549,4694.4,4694.3,1.3315794]
[1759799626884,0.5398,4694.4,4694.3,1.3315794]
[1759799627483,0.7549,4694.4,4694.3,1.3315794]
[1759799627785,0.7549,4694.4,4694.3,0.7993794]
[1759799629783,0.7549,4694.4,4694.3,1.0167794]
[1759799630085,0.7549,4694.4,4694.3,0.6335294]
[1759799631685,0.7549,4694.4,4694.3,0.9386294]
[1759799632789,0.7549,4694.4,4694.3,0.2149294]
[1759799633787,0.7549,4694.4,4694.3,0.4162294]
[1759799634187,0.7549,4694.4,4694.3,0.9387294]
[1759799635085,1.13814,4694.4,4694.3,0.9387294]
[1759799635287,1.13814,4694.4,4694.3,0.6336294]
[1759799636388,1.13814,4694.4,4694.3,1.0168794]
[1759799637287,1.13814,4694.4,4694.3,0.6336294]
[1759799637489,1.13814,4694.4,4694.3,1.0168794]
[1759799639181,1.13814,4694.4,4694.3,1.3219794]
[1759799639486,1.13814,4694.4,4694.3,1.0168794]
[1759799639686,1.13814,4694.4,4694.3,0.6336294]
[1759799643796,1.13814,4694.4,4694.3,0.4162294]
[1759799643989,1.13814,4694.4,4694.3,0.0019294]
[1759799644188,1.61596528,4694.4,4694.3,0.2149294]
[1759799649394,1.23272528,4694.4,4694.3,0.6336294]
[1759799649698,0.7549,4694.4,4694.3,0.9387294]
[1759799649992,0.5304,4694.9,4694.8,0.7238]
[1759799650200,0.7517,4694.9,4694.8,0.9368]
[1759799650399,0.7517,4694.9,4694.8,0.6317]
[1759799653303,0.7517,4694.9,4694.8,0.9368]
[1759799656607,0.7517,4694.9,4694.8,0.6317]
[1759799658506,0.7517,4694.9,4694.8,0.958]
[1759799660305,0.7517,4694.9,4694.8,0.6317]
[1759799662115,1.1349,4694.9,4694.8,1.01491]
[1759799664519,1.1349,4694.9,4694.8,0.213]
[1759799664719,1.1349,4694.9,4694.8,0.59621]
[1759799664915,1.1349,4694.9,4694.8,0.213]
[1759799670329,0.7517,4694.9,4694.8,0.213]
[1759799673835,1.1349,4694.9,4694.8,0.213]
[1759799674332,1.1349,4694.9,4694.8,0.59621]
[1759799674935,1.1349,4694.9,4694.8,0.80431]
[1759799676640,1.1349,4694.9,4694.8,0.4211]
[1759799676938,1.1349,4694.9,4694.8,0.213]
[1759799677535,0.59291,4694.7,4694.6,3.2078]
[1759799677740,1.09811,4694.7,4694.6,3.4208]
[1759799678241,1.09814,4694.4,4694.3,0.0019294]
[1759799678441,1.09814,4694.4,4694.3,0.2149294]
[1759799681444,1.57626675,4694.4,4694.3,0.2149294]
[1759799681743,0.793,4693.7,4693.6,3.2078]
[1759799681939,0.7149,4693.2,4693.1,3.2078]
[1759799682142,0.1232,4693.0,4692.9,0.02130901]
[1759799682446,0.8381,4693.0,4692.9,0.02130901]
[1759799682838,0.8381,4693.0,4692.9,0.02324028]
[1759799683238,0.8381,4693.0,4692.9,0.23624028]
[1759799684639,0.8381,4693.0,4692.9,0.02324028]
[1759799685742,0.8381,4693.0,4692.9,0.24394028]
[1759799685947,0.8381,4693.0,4692.9,0.45394028]
[1759799687546,0.8381,4693.0,4692.9,0.02324028]
[1759799688644,0.8381,4693.0,4692.9,0.23624028]
[1759799691250,0.8381,4693.0,4692.9,0.45244028]
[1759799692548,0.6367,4693.5,4693.4,1.11852]
[1759799692856,0.6367,4693.5,4693.4,1.33152]
[1759799693150,0.8476,4693.5,4693.4,1.33152]
[1759799694552,0.8476,4693.5,4693.4,1.02282]
[1759799695248,0.8476,4693.5,4693.4,0.213]
[1759799695455,0.8487,4693.0,4692.9,0.02324028]
[1759799695651,0.8487,4693.0,4692.9,0.45244028]
[1759799696849,0.8487,4693.0,4692.9,0.66274028]
[1759799697053,0.8487,4693.0,4692.9,0.44974028]
[1759799697253,0.8487,4693.0,4692.9,0.66274028]
[1759799697753,0.8487,4693.0,4692.9,0.23624028]
[1759799700050,0.8487,4693.0,4692.9,0.02324028]
[1759799705454,1.32522758,4693.0,4692.9,0.02324028]
[1759799708759,1.32935811,4693.0,4692.9,0.02324028]
[1759799711558,1.32935811,4693.0,4691.7,40.8]
[1759799711559,0.7244,4691.8,4691.7,40.8]
[1759799711749,0.7244,4691.8,4691.7,41.013]
[1759799711947,0.38346,4691.7,4691.5,3.2078]
[1759799712157,1.10786,4691.7,4691.6,0.4292]
[1759799712653,1.10960953,4691.7,4691.6,0.2177018]
[1759799712854,1.10960953,4691.7,4691.6,0.0015018]
[1759799713755,1.59075084,4691.7,4691.6,0.0015018]
[1759799714455,0.7244,4690.8,4690.7,0.7352]
[1759799714656,0.7244,4690.8,4690.7,0.9482]
[1759799715262,0.7244,4690.8,4690.7,0.6411495]
[1759799715465,0.7244,4690.8,4690.7,0.2146495]
[1759799715961,0.7244,4690.8,4690.7,0.0016495]
[1759799716160,0.7244,4690.8,4690.7,0.2146495]
[1759799716957,0.7244,4690.1,4690.0,4.156]
[1759799717867,0.7244,4690.1,4690.0,3.85001545]
[1759799718662,0.7244,4690.1,4690.0,3.42351545]
[1759799720662,0.7244,4690.1,4690.0,3.21051545]
[1759799720962,0.7244,4690.1,4690.0,3.63571545]
[1759799722670,0.7244,4690.1,4690.0,3.42351545]
[1759799723166,0.7244,4690.1,4690.0,3.63571545]
[1759799724069,0.7244,4690.1,4690.0,0.42791545]
[1759799724469,0.7244,4690.1,4690.0,0.21571545]
[1759799724664,0.7244,4690.1,4690.0,0.00271545]
[1759799726470,0.7244,4690.1,4690.0,0.21491545]
[1759799727469,0.7244,4690.1,4690.0,0.42361545]
[1759799727670,0.7244,4690.1,4690.0,0.73401545]
[1759799727867,0.2063,4690.5,4690.4,0.7313]
[1759799728072,3.4141,4690.9,4690.8,0.7313]
[1759799728371,3.9355,4690.9,4690.8,0.7313]
[1759799728665,0.58979,4691.4,4691.3,0.4209]
[1759799728870,0.58979,4691.4,4691.3,0.7313]
[1759799729071,0.2063,4691.4,4691.3,0.7313]
[1759799729268,0.5219,4691.4,4691.3,0.7313]
[1759799729468,0.7277,4691.4,4691.3,0.7313]
[1759799731975,0.3156,4691.4,4691.3,0.7313]
[1759799732272,3.7297,4691.5,4691.4,0.7313]
[1759799732878,3.2078,4691.5,4691.4,0.7313]
[1759799733170,0.00174953,4691.7,4691.6,0.4209]
[1759799733368,0.00174953,4691.7,4691.6,0.9443]
[1759799733765,0.00174953,4691.7,4691.6,4.1521]
[1759799736975,0.32984953,4691.7,4691.6,4.1521]
[1759799737166,0.42204953,4691.7,4691.1,3.2078]
[1759799737474,1.13189,4691.3,4691.2,0.9638]
[1759799738176,1.13189,4691.3,4691.2,0.6407]
[1759799738378,0.7484,4691.3,4691.2,0.9638]
[1759799738576,0.3281,4691.6,4691.5,0.5333]
[1759799738776,0.3281,4691.6,4691.5,0.9638]
[1759799739078,0.5338,4691.6,4691.5,0.9638]
[1759799739281,0.3281,4691.6,4691.5,0.9638]
[1759799739778,0.3281,4691.6,4691.5,0.7508]
[1759799739978,0.3281,4691.6,4691.5,0.9638]